bitfinex-derivatives/quotes_BTCF0:USTF0_20250505
["timestamp","ask_amount","ask_price","bid_price","bid_amount"]
[1746482767904,0.626479,94827.0,94826.0,0.10568]
[1746482768103,0.625479,94827.0,94826.0,0.10568]
[1746482768594,0.626479,94827.0,94826.0,0.10568]
[1746482770799,0.625479,94827.0,94826.0,0.10568]
[1746482771007,0.628479,94827.0,94826.0,0.0394]
[1746482771606,0.627479,94827.0,94826.0,0.0394]
[1746482775608,0.625479,94827.0,94826.0,0.0394]
[1746482775809,0.627479,94827.0,94826.0,0.0394]
[1746482778812,0.625479,94827.0,94826.0,0.0394]
[1746482779010,0.627479,94827.0,94826.0,0.0394]
[1746482786512,0.266679,94827.0,94826.0,0.0394]
[1746482788301,0.265679,94827.0,94826.0,0.0394]
[1746482788507,0.347979,94827.0,94826.0,0.0394]
[1746482789414,0.345979,94827.0,94826.0,0.0394]
[1746482789615,0.347979,94827.0,94826.0,0.0394]
[1746482790318,0.348979,94827.0,94826.0,0.0394]
[1746482790906,0.345979,94827.0,94826.0,0.0394]
[1746482791102,0.347979,94827.0,94826.0,0.0394]
[1746482791302,0.266679,94827.0,94826.0,0.6111442]
[1746482793708,0.265679,94827.0,94826.0,0.6111442]
[1746482793907,0.264679,94827.0,94826.0,0.6111442]
[1746482794115,0.266679,94827.0,94826.0,0.6111442]
[1746482794818,0.266679,94827.0,94826.0,0.4002]
[1746482796019,0.266679,94827.0,94826.0,0.6111442]
[1746482796219,0.266679,94827.0,94826.0,0.6529442]
[1746482797312,0.266679,94827.0,94826.0,0.442]
[1746482799018,0.265679,94827.0,94826.0,0.442]
[1746482800020,0.264679,94827.0,94826.0,0.442]
[1746482800210,0.265679,94827.0,94826.0,0.442]
[1746482800516,0.265679,94827.0,94826.0,0.0812]
[1746482800719,0.265679,94827.0,94826.0,0.442]
[1746482801225,0.265679,94827.0,94826.0,0.6529442]
[1746482802517,0.265679,94827.0,94826.0,0.2921442]
[1746482802723,0.265679,94827.0,94826.0,0.6529442]
[1746482802911,0.264679,94827.0,94826.0,0.6529442]
[1746482803117,0.265679,94827.0,94826.0,0.6529442]
[1746482803611,0.265679,94827.0,94826.0,0.2921442]
[1746482803917,0.265679,94827.0,94826.0,0.442]
[1746482804325,0.265679,94827.0,94826.0,0.6529442]
[1746482805422,0.265679,94827.0,94826.0,0.7191442]
[1746482808824,0.264679,94827.0,94826.0,0.7191442]
[1746482809027,0.265679,94827.0,94826.0,0.7191442]
[1746482810129,0.265679,94827.0,94826.0,0.4664]
[1746482810919,0.265679,94827.0,94826.0,0.4002]
[1746482816026,0.265679,94827.0,94826.0,0.441]
[1746482817914,0.265679,94827.0,94826.0,0.4002]
[1746482818123,0.265679,94827.0,94826.0,0.6111442]
[1746482819130,0.264679,94827.0,94826.0,0.6121442]
[1746482819928,0.263679,94827.0,94826.0,0.6131442]
[1746482820432,0.263679,94827.0,94826.0,0.6121442]
[1746482821329,0.302579,94827.0,94826.0,0.6111442]
[1746482821914,0.263679,94827.0,94826.0,0.6111442]
[1746482822625,0.263679,94827.0,94826.0,0.4002]
[1746482822828,0.263679,94827.0,94826.0,0.6111442]
[1746482823924,0.263679,94827.0,94826.0,0.2503442]
[1746482824133,0.264679,94827.0,94826.0,0.2503442]
[1746482824628,0.263679,94827.0,94826.0,0.2503442]
[1746482825127,0.263679,94827.0,94826.0,0.0394]
[1746482825327,0.263679,94827.0,94826.0,0.2503442]
[1746482830421,0.26384852,94827.0,94826.0,0.2523442]
[1746482830829,0.26384852,94827.0,94826.0,0.2513442]
[1746482831131,0.26384852,94827.0,94826.0,0.2503442]
[1746482834020,0.00016952,94827.0,94826.0,0.2503442]
[1746482834220,0.2109117,94841.0,94834.0,0.2109264]
[1746482834530,0.210918,94838.0,94834.0,0.6378864]
[1746482834734,0.2109159,94839.0,94834.0,0.7433344]
[1746482834923,0.0527266,94843.0,94834.0,0.8225344]
[1746482835124,0.2109153,94839.0,94834.0,0.8225344]
[1746482835523,0.2109178,94838.0,94834.0,0.8225344]
[1746482835723,0.0025,94835.0,94834.0,0.8225344]
[1746482836531,0.2636136,94855.0,94854.0,0.2635974]
[1746482836734,0.2636136,94855.0,94854.0,0.6378419]
[1746482836735,0.3163354,94855.0,94854.0,0.6378419]
[1746482837417,0.3976354,94855.0,94854.0,0.64854123]
[1746482837624,0.3996354,94855.0,94854.0,0.64854123]
[1746482838227,0.3996354,94855.0,94854.0,0.65646901]
[1746482838731,0.3996354,94855.0,94854.0,0.64854123]
[1746482840131,0.3976354,94855.0,94854.0,0.64854123]
[1746482840322,0.3986354,94855.0,94854.0,0.64854123]
[1746482840932,0.3976354,94855.0,94854.0,0.64854123]
[1746482842329,0.2108919,94855.0,94854.0,0.64854123]
[1746482842732,0.2108919,94855.0,94854.0,0.68704123]
[1746482843134,0.2108919,94855.0,94854.0,0.69480925]
[1746482843441,0.00158218,94857.0,94856.0,0.2108775]
[1746482843942,0.00158218,94857.0,94856.0,0.7108775]
[1746482844128,0.0527082,94877.0,94864.0,0.2108597]
[1746482844441,0.2108585,94865.0,94864.0,0.2108597]
[1746482844641,0.2108585,94865.0,94864.0,0.2484597]
[1746482844940,0.2912585,94865.0,94864.0,0.2484597]
[1746482845440,0.2108585,94865.0,94864.0,0.2484597]
[1746482846439,0.2128585,94865.0,94864.0,0.7484597]
[1746482847232,0.2128585,94865.0,94864.0,0.7890597]
[1746482848033,0.2908585,94865.0,94864.0,0.7890597]
[1746482848432,0.2908585,94865.0,94864.0,0.7514597]
[1746482849534,0.2898585,94865.0,94864.0,0.7514597]
[1746482849837,0.2898585,94865.0,94864.0,0.5]
[1746482850142,0.2898585,94865.0,94864.0,0.56716]
[1746482850940,0.2898585,94865.0,94864.0,0.06716]
[1746482851337,0.6506585,94865.0,94864.0,0.001]
[1746482851544,0.2898585,94865.0,94864.0,0.001]
[1746482852135,0.2098597,94864.0,94863.0,0.06616]
[1746482852536,0.2846597,94864.0,94863.0,0.06616]
[1746482852830,0.2108775,94856.0,94855.0,0.0396]
[1746482853135,0.210922,94837.0,94836.0,0.2109202]
[1746482853334,0.210922,94837.0,94836.0,0.29517807]
[1746482853534,0.251922,94837.0,94836.0,0.29517807]
[1746482853733,0.251922,94837.0,94836.0,0.01033944]
[1746482853940,0.210922,94836.0,94835.0,0.00158158]
[1746482854336,0.250322,94836.0,94835.0,0.27862578]
[1746482855143,0.250322,94836.0,94835.0,0.28932773]
[1746482856345,0.251322,94836.0,94835.0,0.28932773]
[1746482856641,0.251322,94836.0,94835.0,0.01228353]
[1746482856843,0.251322,94836.0,94835.0,0.00158158]
[1746482857041,0.252322,94836.0,94835.0,0.00158158]
[1746482860351,0.254322,94836.0,94835.0,0.00158158]
[1746482867255,0.2109598,94819.0,94817.0,0.00158199]
[1746482867551,0.210962,94818.0,94817.0,0.00158199]
[1746482867741,0.646262,94818.0,94817.0,0.00158199]
[1746482868951,0.646262,94818.0,94817.0,9e-08]
[1746482869343,0.646262,94818.0,94817.0,0.00100009]
[1746482869545,0.645262,94818.0,94817.0,0.00100009]
[1746482870353,0.647262,94818.0,94817.0,0.00100009]
[1746482871148,0.752726,94818.0,94817.0,0.00100009]
[1746482871455,0.753726,94818.0,94817.0,9e-08]
[1746482872649,0.819846,94818.0,94817.0,9e-08]
[1746482878651,0.2109887,94806.0,94805.0,8e-08]
[1746482878959,0.5717887,94806.0,94805.0,8e-08]
[1746482879160,0.6772687,94806.0,94805.0,8e-08]
[1746482879659,0.7548687,94806.0,94805.0,0.00100008]
[1746482879961,0.7548687,94806.0,94805.0,0.00200008]
[1746482881552,0.6493887,94806.0,94805.0,0.00200008]
[1746482887365,0.5717887,94806.0,94805.0,0.00200008]
[1746482887958,0.2109887,94806.0,94805.0,0.00200008]
[1746482901379,0.2109887,94806.0,94805.0,0.31847097]
[1746482901676,0.2109887,94806.0,94805.0,0.67927097]
[1746482901872,0.2109887,94806.0,94805.0,1.17927097]
[1746482902380,0.2109887,94806.0,94805.0,1.21887097]
[1746482903782,0.3164715,94815.0,94812.0,0.2637142]
[1746482904077,0.2637167,94813.0,94812.0,0.2637142]
[1746482904467,0.2637167,94813.0,94812.0,0.2109709]
[1746482905676,0.2647167,94813.0,94812.0,0.7109709]
[1746482906580,0.2657167,94813.0,94812.0,0.7109709]
[1746482907578,0.2129731,94813.0,94812.0,0.7109709]
[1746482907772,0.2119731,94813.0,94812.0,0.7109709]
[1746482907975,0.2109731,94813.0,94812.0,0.7109709]
[1746482908168,0.2109731,94813.0,94812.0,0.7119709]
[1746482910784,0.2109731,94813.0,94812.0,0.7129709]
[1746482911080,0.0527403,94819.0,94818.0,0.2636947]
[1746482911679,0.26371,94819.0,94818.0,0.2636947]
[1746482911883,0.2109408,94828.0,94827.0,0.210942]
[1746482912183,0.2109408,94828.0,94827.0,0.637862]
[1746482912385,0.2109398,94828.0,94827.0,0.7960529]
[1746482912986,0.2109276,94834.0,94833.0,0.2109286]
[1746482913980,0.0015,94835.0,94834.0,0.2109264]
[1746482914188,0.2124242,94835.0,94834.0,0.2109264]
[1746482914792,0.2124242,94835.0,94834.0,0.7109264]
[1746482915390,0.2124242,94835.0,94834.0,0.71879059]
[1746482915591,0.2134242,94835.0,94834.0,0.71879059]
[1746482916592,0.2134242,94835.0,94834.0,1.07959059]
[1746482916790,0.2134242,94835.0,94834.0,1.11589059]
[1746482917384,0.2134242,94835.0,94834.0,1.15199059]
[1746482917891,0.2124242,94835.0,94834.0,1.15199059]
[1746482919588,0.2871242,94835.0,94834.0,1.15199059]
[1746482920990,0.2871242,94835.0,94834.0,0.8969]
[1746482921195,0.2871242,94835.0,94834.0,0.56608]
[1746482921384,0.2871242,94835.0,94834.0,0.60428]
[1746482922191,0.2871242,94835.0,94834.0,0.10428]
[1746482922593,0.2109264,94834.0,94833.0,0.01044843]
[1746482922793,0.2489264,94834.0,94833.0,0.06608]
[1746482922991,0.2109576,94820.0,94819.0,0.2491576]
[1746482923192,0.2109576,94820.0,94819.0,0.3152376]
[1746482923691,0.2109576,94820.0,94819.0,0.8537376]
[1746482924092,0.1054688,94832.0,94819.0,0.64278]
[1746482924297,0.2636747,94828.0,94827.0,0.5717398]
[1746482924988,0.2636747,94828.0,94827.0,0.6475398]
[1746482925189,0.3013747,94828.0,94827.0,0.65790066]
[1746482926499,0.3013747,94828.0,94827.0,0.61940066]
[1746482927003,0.3033747,94828.0,94827.0,0.61940066]
[1746482927702,0.3023747,94828.0,94827.0,0.61940066]
[1746482928397,0.3023747,94828.0,94827.0,0.25860066]
[1746482928602,0.3023747,94828.0,94827.0,0.61940066]
[1746482928900,0.3013747,94828.0,94827.0,0.61940066]
[1746482930196,0.3013747,94828.0,94827.0,0.25860066]
[1746482930398,0.3023747,94828.0,94827.0,0.61940066]
[1746482931604,0.3023747,94828.0,94827.0,0.25860066]
[1746482931804,0.3023747,94828.0,94827.0,0.61940066]
[1746482933806,0.3023747,94828.0,94827.0,0.68548066]
[1746482935508,0.3023747,94828.0,94827.0,0.32468066]
[1746482935700,0.3023747,94828.0,94827.0,0.68548066]
[1746482937113,0.3023747,94828.0,94827.0,0.32468066]
[1746482937308,0.3023747,94828.0,94827.0,0.68548066]
[1746482938110,0.3023747,94828.0,94827.0,0.32468066]
[1746482938315,0.3023747,94828.0,94827.0,0.68548066]
[1746482939012,0.3023747,94828.0,94827.0,0.32468066]
[1746482939212,0.3023747,94828.0,94827.0,0.68548066]
[1746482941014,0.3013747,94828.0,94827.0,0.68548066]
[1746482941215,0.3013747,94828.0,94827.0,0.68648066]
[1746482941411,0.3163976,94834.0,94830.0,0.0527335]
[1746482941713,0.4402303,94834.0,94833.0,0.2109286]
[1746482942214,0.0357,94834.0,94833.0,0.2109286]
[1746482942424,0.2124242,94835.0,94834.0,0.2109264]
[1746482943725,0.2134242,94835.0,94834.0,0.2109264]
[1746482944025,0.2492242,94835.0,94834.0,0.7109264]
[1746482945124,0.2492242,94835.0,94834.0,1.0717264]
[1746482945936,0.2134242,94835.0,94834.0,1.0717264]
[1746482947736,0.2124242,94835.0,94834.0,1.0717264]
[1746482947934,0.2489242,94835.0,94834.0,1.0717264]
[1746482949529,0.2489242,94835.0,94834.0,0.8608]
[1746482950929,0.2489242,94835.0,94834.0,0.3608]
[1746482952540,0.2509242,94835.0,94834.0,0.5717264]
[1746482953832,0.2489242,94835.0,94834.0,0.5717264]
[1746482954035,0.2509242,94835.0,94834.0,0.5717264]
[1746482958433,0.2509242,94835.0,94834.0,0.3608]
[1746482959138,0.2509242,94835.0,94834.0,0.42688]
[1746482959637,0.2509242,94835.0,94834.0,0.3608]
[1746482962138,0.2109264,94834.0,94833.0,0.06608]
[1746482962352,0.2478264,94834.0,94833.0,0.06608]
[1746482963145,0.2498264,94834.0,94833.0,0.06608]
[1746482968444,0.2498264,94834.0,94833.0,0.2770086]
[1746482968658,0.2856264,94834.0,94833.0,0.06608]
[1746482968945,0.2856264,94834.0,94833.0,0.2770086]
[1746482969147,0.2856264,94834.0,94833.0,0.3487086]
[1746482969339,0.2856264,94834.0,94833.0,0.13778]
[1746482969740,0.2856264,94834.0,94833.0,0.3487086]
[1746482970135,0.2129264,94834.0,94833.0,0.7095086]
[1746482970949,0.2119264,94834.0,94833.0,0.7095086]
[1746482971251,0.001,94834.0,94833.0,0.7095086]
[1746482971551,0.0015,94835.0,94834.0,0.2109264]
[1746482971747,0.0015,94835.0,94834.0,0.3163744]
[1746482971948,0.0015,94835.0,94834.0,0.3889744]
[1746482972150,0.0015,94835.0,94834.0,0.8889744]
[1746482973546,0.2124242,94835.0,94834.0,0.8889744]
[1746482974138,0.0025,94835.0,94834.0,0.8889744]
[1746482974341,0.2134242,94835.0,94834.0,0.8889744]
[1746482974950,0.0025,94835.0,94834.0,0.8889744]
[1746482976163,0.0025,94835.0,94834.0,1.1443264]
[1746482977951,0.0015,94835.0,94834.0,1.1463264]
[1746482978351,0.0015,94835.0,94834.0,1.1483264]
[1746482978654,0.0015,94835.0,94834.0,1.1463264]
[1746482978845,0.0015,94835.0,94834.0,1.1483264]
[1746482980558,0.0015,94835.0,94834.0,1.1463264]
[1746482980853,0.0015,94835.0,94834.0,1.1483264]
[1746482981451,0.0015,94835.0,94834.0,1.1473264]
[1746482988850,0.2108918,94850.0,94849.0,0.2108908]
[1746482989149,0.2108918,94850.0,94849.0,0.6377308]
[1746482989354,0.2804918,94850.0,94849.0,0.6377308]
[1746482989549,0.2804918,94850.0,94849.0,0.6746308]
[1746482989953,0.2824918,94850.0,94849.0,0.6746308]
[1746482990153,0.2824918,94850.0,94849.0,1.1746308]
[1746482990744,0.2824918,94850.0,94849.0,1.2120308]
[1746482991149,0.2804918,94850.0,94849.0,1.2120308]
[1746482994354,0.2804918,94850.0,94849.0,1.1746308]
[1746482995159,0.2804918,94850.0,94849.0,0.8138308]
[1746482995356,0.2804918,94850.0,94849.0,1.1746308]
[1746482998161,0.2804918,94850.0,94849.0,0.92684]
[1746482999055,0.2804918,94850.0,94849.0,0.6377331]
[1746482999451,0.2814918,94850.0,94849.0,0.6377331]
[1746483000053,0.2804918,94850.0,94849.0,0.6377331]
[1746483000257,0.2814918,94850.0,94849.0,0.6377331]
[1746483000856,0.2804918,94850.0,94849.0,0.6377331]
[1746483002359,0.0696,94850.0,94849.0,0.6377331]
[1746483002556,0.0696,94850.0,94849.0,0.7095331]
[1746483002866,0.2804908,94850.0,94849.0,0.7095331]
[1746483003066,0.2804908,94850.0,94849.0,1.2095331]
[1746483003563,0.0696,94850.0,94849.0,1.2095331]
[1746483003763,0.2804908,94850.0,94849.0,1.2095331]
[1746483004755,0.0696,94850.0,94849.0,1.2095331]
[1746483004957,0.0696,94850.0,94849.0,1.22496202]
[1746483005157,0.2804908,94850.0,94849.0,1.15316202]
[1746483005365,0.2804908,94850.0,94849.0,1.1377331]
[1746483010270,0.2804908,94850.0,94849.0,0.7769331]
[1746483010471,0.2804908,94850.0,94849.0,1.1377331]
[1746483011171,0.2804908,94850.0,94849.0,1.0716931]
[1746483011368,0.2804908,94850.0,94849.0,1.1376931]
[1746483014975,0.2804908,94850.0,94849.0,0.7768931]
[1746483015162,0.2804908,94850.0,94849.0,1.1376931]
[1746483017675,0.2804908,94850.0,94849.0,0.566]
[1746483018473,0.2804908,94850.0,94849.0,0.066]
[1746483019573,0.2834908,94850.0,94849.0,0.066]
[1746483021182,0.2824908,94850.0,94849.0,0.066]
[1746483022573,0.2804908,94850.0,94849.0,0.066]
[1746483022776,0.2824908,94850.0,94849.0,0.1007]
[1746483023972,0.2824908,94850.0,94849.0,0.3115931]
[1746483024181,0.2824908,94850.0,94849.0,0.6723931]
[1746483024862,0.2824908,94850.0,94849.0,0.7064931]
[1746483028177,0.2804908,94850.0,94849.0,0.7064931]
[1746483028376,0.2450908,94850.0,94849.0,0.7064931]
[1746483029078,0.2460908,94850.0,94849.0,0.7064931]
[1746483030671,0.2108908,94850.0,94849.0,0.7064931]
[1746483030872,0.2118908,94850.0,94849.0,0.7064931]
[1746483031478,0.2108908,94850.0,94849.0,0.7064931]
[1746483031679,0.2108908,94850.0,94849.0,1.2064931]
[1746483035578,0.210888,94852.0,94851.0,0.2108864]
[1746483037281,0.210888,94852.0,94851.0,0.7108864]
[1746483037680,0.210888,94852.0,94851.0,0.7806864]
[1746483038070,0.284888,94852.0,94851.0,0.7806864]
[1746483043385,0.284888,94852.0,94851.0,0.7449886]
[1746483044281,0.285888,94852.0,94851.0,0.7449886]
[1746483044783,0.286888,94852.0,94851.0,0.7449886]
[1746483046289,0.285888,94852.0,94851.0,0.7449886]
[1746483047480,0.284888,94852.0,94851.0,0.7449886]
[1746483047688,0.286888,94852.0,94851.0,0.7449886]
[1746483048689,0.286888,94852.0,94851.0,0.5341]
[1746483048979,0.286888,94852.0,94851.0,0.5]
[1746483049186,0.2108908,94850.0,94849.0,0.066]
[1746483050678,0.2128908,94850.0,94849.0,0.066]
[1746483051181,0.2128908,94850.0,94849.0,0.2768931]
[1746483054185,0.2128908,94850.0,94849.0,0.066]
[1746483059888,0.2109487,94824.0,94823.0,0.05019451]
[1746483060091,0.2109576,94820.0,94819.0,1e-08]
[1746483060291,0.210962,94818.0,94817.0,0.21745116]
[1746483060497,0.210982,94809.0,94805.0,0.01060907]
[1746483060996,0.2109887,94806.0,94805.0,8e-08]
[1746483061596,0.2089887,94806.0,94805.0,8e-08]
[1746483062081,0.2461887,94806.0,94805.0,8e-08]
[1746483062591,0.0527401,94819.0,94805.0,0.36080008]
[1746483062789,0.2587297,94815.0,94814.0,0.2637031]
[1746483062993,0.2587297,94815.0,94814.0,0.281262]
[1746483063893,0.2587297,94815.0,94814.0,0.316262]
[1746483064292,0.0527305,94836.0,94827.0,0.0527353]
[1746483064597,0.0527302,94837.0,94834.0,0.2109264]
[1746483064794,0.2124242,94835.0,94834.0,0.2109264]
[1746483065383,0.2124242,94835.0,94834.0,0.2470264]
[1746483065591,0.2124242,94835.0,94834.0,0.2820264]
[1746483066206,0.2479242,94835.0,94834.0,0.2820264]
[1746483066789,0.2499242,94835.0,94834.0,0.2820264]
[1746483067698,0.2479242,94835.0,94834.0,0.2820264]
[1746483067898,0.2489242,94835.0,94834.0,0.2820264]
[1746483068493,0.2469242,94835.0,94834.0,0.2820264]
[1746483068697,0.2479242,94835.0,94834.0,0.2820264]
[1746483069202,0.2469242,94835.0,94834.0,0.2820264]
[1746483069399,0.2479242,94835.0,94834.0,0.2820264]
[1746483070401,0.2469242,94835.0,94834.0,0.2820264]
[1746483070601,0.2479242,94835.0,94834.0,0.2820264]
[1746483070997,0.2469242,94835.0,94834.0,0.2820264]
[1746483071301,0.2479242,94835.0,94834.0,0.2820264]
[1746483073605,0.2144242,94835.0,94834.0,0.2820264]
[1746483080510,0.2144242,94835.0,94834.0,0.0711]
[1746483080710,0.2493242,94835.0,94834.0,0.0711]
[1746483081009,0.2493242,94835.0,94834.0,0.2820264]
[1746483084513,0.2493242,94835.0,94834.0,0.2459264]
[1746483085906,0.2109331,94831.0,94830.0,0.5717353]
[1746483087213,0.2119331,94831.0,94830.0,0.6050353]
[1746483089212,0.2119331,94831.0,94830.0,0.2442353]
[1746483089807,0.2129331,94831.0,94830.0,0.2442353]
[1746483090617,0.2139331,94831.0,94830.0,0.2442353]
[1746483097822,0.2506331,94831.0,94830.0,0.2442353]
[1746483098730,0.2506331,94831.0,94830.0,0.25968343]
[1746483099433,0.2496331,94831.0,94830.0,0.25968343]
[1746483099628,0.2486331,94831.0,94830.0,0.25968343]
[1746483107636,0.0377,94831.0,94830.0,0.25968343]
[1746483107828,0.001,94831.0,94830.0,0.25968343]
[1746483108436,0.2464296,94833.0,94832.0,0.2109309]
[1746483108631,0.2464296,94833.0,94832.0,0.22637903]
[1746483109138,0.2464296,94833.0,94832.0,0.29387903]
[1746483109436,0.2464296,94833.0,94832.0,0.2784309]
[1746483111038,0.2464296,94833.0,94832.0,0.7784309]
[1746483112038,0.2474296,94833.0,94832.0,0.7784309]
[1746483112626,0.2474296,94833.0,94832.0,0.7794309]
[1746483112830,0.2474296,94833.0,94832.0,0.79489433]
[1746483113140,0.2464296,94833.0,94832.0,0.79389433]
[1746483113441,0.2464296,94833.0,94832.0,0.79389362]
[1746483114845,0.2474296,94833.0,94832.0,0.79389362]
[1746483115238,0.2474296,94833.0,94832.0,0.79390485]
[1746483115943,0.2474296,94833.0,94832.0,0.7784309]
[1746483119554,0.2474296,94833.0,94832.0,0.7442309]
[1746483119750,0.2474296,94833.0,94832.0,0.5]
[1746483120049,0.2474296,94833.0,94821.0,0.0367]
[1746483120050,0.210942,94827.0,94821.0,0.0367]
[1746483120252,0.210942,94827.0,94820.0,0.06584]
[1746483120253,0.2109553,94821.0,94820.0,0.06584]
[1746483121147,0.2099553,94821.0,94820.0,0.06584]
[1746483121351,0.2777553,94821.0,94820.0,0.06584]
[1746483122052,0.2777553,94821.0,94820.0,0.07084]
[1746483122253,0.2777553,94821.0,94820.0,0.005]
[1746483122653,0.2797553,94821.0,94820.0,0.002]
[1746483123142,0.1225391,94821.0,94808.0,0.0527459]
[1746483123346,0.2109798,94810.0,94809.0,0.06584]
[1746483123555,0.2109887,94806.0,94805.0,0.21099098]
[1746483124450,0.2466887,94806.0,94805.0,0.21099098]
[1746483125148,0.2466887,94806.0,94805.0,8e-08]
[1746483125457,0.2456887,94806.0,94805.0,8e-08]
[1746483126355,0.2466887,94806.0,94805.0,0.00100008]
[1746483128659,0.2466887,94806.0,94805.0,0.21199098]
[1746483129660,0.2466887,94806.0,94805.0,0.00100008]
[1746483132560,0.7129687,94806.0,94805.0,0.00100008]
[1746483133355,0.2109998,94801.0,94800.0,0.1]
[1746483133861,0.3164838,94801.0,94800.0,0.1]
[1746483134261,0.3872838,94801.0,94800.0,0.1]
[1746483134454,0.3872838,94801.0,94800.0,0.101]
[1746483135165,0.3872838,94801.0,94800.0,0.102]
[1746483135566,0.39516042,94801.0,94800.0,0.102]
[1746483135855,0.2817998,94801.0,94800.0,0.102]
[1746483136061,0.2817998,94801.0,94800.0,0.3130021]
[1746483137265,0.2472998,94801.0,94800.0,0.3130021]
[1746483137764,0.2472998,94801.0,94800.0,0.3834021]
[1746483140968,0.0871466,94807.0,94804.0,0.2637364]
[1746483141287,0.3164824,94807.0,94806.0,0.2109887]
[1746483141759,0.3164824,94807.0,94806.0,0.2806887]
[1746483143760,0.3174824,94807.0,94806.0,0.2806887]
[1746483147872,0.3174824,94807.0,94806.0,0.0697]
[1746483148469,0.2109954,94803.0,94802.0,0.3608]
[1746483148673,0.2109998,94801.0,94800.0,0.1]
[1746483149772,0.2099998,94801.0,94800.0,0.1]
[1746483150468,0.2099998,94801.0,94800.0,0.101]
[1746483151972,0.2099998,94801.0,94800.0,0.102]
[1746483152373,0.2129998,94801.0,94800.0,0.101]
[1746483152775,0.2159998,94801.0,94800.0,0.1]
[1746483153474,0.2129998,94801.0,94800.0,0.1]
[1746483153672,0.2159998,94801.0,94800.0,0.1]
[1746483154370,0.2169998,94801.0,94800.0,0.1]
[1746483156576,0.2129998,94801.0,94800.0,0.1]
[1746483156878,0.2169998,94801.0,94800.0,0.1]
[1746483157575,0.2504998,94801.0,94800.0,0.1]
[1746483158480,0.2474998,94801.0,94800.0,0.3110021]
[1746483158671,0.2504998,94801.0,94800.0,0.1]
[1746483159077,0.2504998,94801.0,94800.0,0.18609907]
[1746483159481,0.2494998,94801.0,94800.0,0.39710117]
[1746483159781,0.2484998,94801.0,94800.0,0.39710117]
[1746483160080,0.2484998,94801.0,94800.0,0.18609907]
[1746483160470,0.2484998,94801.0,94800.0,0.18618355]
[1746483161080,0.2464998,94801.0,94800.0,0.18618355]
[1746483161282,0.2494998,94801.0,94800.0,0.18618355]
[1746483162385,0.2484998,94801.0,94800.0,0.18618355]
[1746483163281,0.2484998,94801.0,94800.0,0.39718565]
[1746483167682,0.2464998,94801.0,94800.0,0.39718565]
[1746483167887,0.2474998,94801.0,94800.0,0.39718565]
[1746483168388,0.2464998,94801.0,94800.0,0.39718565]
[1746483168587,0.2129998,94801.0,94800.0,0.39718565]
[1746483169891,0.2109998,94801.0,94800.0,0.89718565]
[1746483170082,0.2119998,94801.0,94800.0,0.89718565]
[1746483170589,0.2119998,94801.0,94800.0,0.89671785]
[1746483171292,0.2109998,94801.0,94800.0,0.89671785]
[1746483171482,0.2119998,94801.0,94800.0,0.89671785]
[1746483172392,0.2109998,94801.0,94800.0,0.89669021]
[1746483172588,0.2119998,94801.0,94800.0,0.89669021]
[1746483176691,0.2465998,94801.0,94800.0,0.68568811]
[1746483176902,0.3134998,94801.0,94800.0,0.65168811]
[1746483177790,0.3134998,94801.0,94800.0,0.15168811]
[1746483178191,0.3134998,94801.0,94800.0,0.11578811]
[1746483183992,0.3134998,94801.0,94800.0,0.11578766]
[1746483186999,0.3134998,94801.0,94800.0,0.36078976]
[1746483187499,0.3134998,94801.0,94800.0,0.14978766]
[1746483187698,0.3134998,94801.0,94800.0,0.36078976]
[1746483188095,0.3134998,94801.0,94800.0,0.14978766]
[1746483188295,0.3134998,94801.0,94800.0,0.36078976]
[1746483190894,0.3134998,94801.0,94800.0,0.14978766]
[1746483191401,0.3134998,94801.0,94800.0,0.1494815]
[1746483192304,0.3134998,94801.0,94800.0,0.134]
[1746483193209,0.3134998,94801.0,94800.0,0.14947613]
[1746483195103,0.3134998,94801.0,94800.0,0.1494988]
[1746483195305,0.3134998,94801.0,94800.0,0.14949877]
[1746483198804,0.3134998,94801.0,94800.0,0.14952974]
[1746483202413,0.3134998,94801.0,94800.0,0.14947097]
[1746483204213,0.3134998,94801.0,94800.0,0.14945688]
[1746483204415,0.2465998,94801.0,94800.0,0.36045898]
[1746483204614,0.2119998,94801.0,94800.0,0.36045898]
[1746483206115,0.2119998,94801.0,94800.0,0.36056606]
[1746483206715,0.2460998,94801.0,94800.0,0.36056606]
[1746483207216,0.2460998,94801.0,94800.0,0.36056686]
[1746483207915,0.2460998,94801.0,94800.0,0.36056633]
[1746483209918,0.2460998,94801.0,94800.0,0.36050501]
[1746483211710,0.2460998,94801.0,94800.0,0.39543655]
[1746483212109,0.2816998,94801.0,94800.0,0.39543655]
[1746483212315,0.2816998,94801.0,94800.0,0.3800021]
[1746483231128,0.2816998,94801.0,94800.0,0.134]
[1746483231634,0.2816998,94801.0,94800.0,0.1]
[1746483234629,0.2816998,94801.0,94800.0,0.3110021]
[1746483235331,0.2816998,94801.0,94800.0,0.3463021]
[1746483235521,0.2816998,94801.0,94800.0,0.3801021]
[1746483236335,0.2816998,94801.0,94800.0,0.39555886]
[1746483237339,0.2816998,94801.0,94800.0,0.39555901]
[1746483240837,0.2816998,94801.0,94800.0,0.39558811]
[1746483241424,0.2816998,94801.0,94800.0,0.18458601]
[1746483241640,0.3165998,94801.0,94800.0,0.18458601]
[1746483241941,0.3165998,94801.0,94800.0,0.39558811]
[1746483244235,0.3165998,94801.0,94800.0,0.3801021]
[1746483244543,0.3165998,94801.0,94800.0,0.39559998]
[1746483248228,0.3165998,94801.0,94800.0,0.39559612]
[1746483250439,0.2816998,94801.0,94800.0,0.39559612]
[1746483250641,0.2816998,94801.0,94800.0,0.36179612]
[1746483251343,0.2816998,94801.0,94800.0,0.39779612]
[1746483255542,0.2816998,94801.0,94800.0,0.39787772]
[1746483256640,0.2460998,94801.0,94800.0,0.39787772]
[1746483256840,0.2460998,94801.0,94800.0,0.89787772]
[1746483258044,0.2440998,94801.0,94800.0,0.89787772]
[1746483258241,0.2450998,94801.0,94800.0,0.89787772]
[1746483258849,0.2440998,94801.0,94800.0,0.89787772]
[1746483259239,0.2440998,94801.0,94800.0,0.89814866]
[1746483259847,0.2109875,94807.0,94806.0,0.2637309]
[1746483260148,0.2109642,94817.0,94816.0,0.2109642]
[1746483260542,0.2468642,94817.0,94816.0,0.2109642]
[1746483261046,0.2468642,94817.0,94816.0,0.22682469]
[1746483261237,0.0741,94817.0,94816.0,0.29632469]
[1746483261432,0.003,94817.0,94816.0,0.29632469]
[1746483261638,0.007,94817.0,94816.0,0.29632469]
[1746483262840,0.007,94817.0,94816.0,0.7804642]
[1746483263044,0.007,94817.0,94816.0,0.79639916]
[1746483263344,0.0015,94835.0,94817.0,0.0527407]
[1746483263549,0.0335,94831.0,94830.0,0.5717353]